Cogmind - Beta 13 @@@ ROGUE MODE // 2024.04.06 @ 16:04:32 Player: Copyrite Result: Self-destructed Performance ------------- Evolutions (3) 1500 Regions Visited (6) 1200 Robots Destroyed (156) 780 Value Destroyed (3924) 3924 Prototype IDs (12) 240 Alien Tech Used (0) 0 Bonus (304) 304 TOTAL SCORE: 7948 Bonus ------- High Alert Combat Kills 304 Cogmind --------- Core Integrity 508/700 Matter 297/300 Energy 36/100 System Corruption 8% Temperature Cool (0) Movement Rolling (100) Location -7/Factory Parts ------- > --- POWER (1) -------- (None) > --- PROPULSION (4) --- Armored Huge Wheel Armored Huge Wheel > --- UTILITY (6) ------ Improved Heat Sink Large Storage Unit Advanced Targeting Computer Advanced Targeting Computer Advanced Targeting Computer > --- WEAPON (2) ------- Heavy Particle Gun > --- INVENTORY (15) --- Structural Scanner Improved Power Shielding Improved Utility Shielding Component Analysis Suite Recalibrator Advanced Beam Rifle Mini Grenade Launcher Peak State ------------ > --- POWER ------------ Light Deuterium Engine > --- PROPULSION ------- Armored Huge Wheel Armored Huge Wheel > --- UTILITY ---------- Large Storage Unit Improved Sensor Array Improved Signal Interpreter Advanced Targeting Computer Advanced Targeting Computer Advanced Targeting Computer > --- WEAPON ----------- Precision Beam Rifle Improved Spread Laser > --- INVENTORY -------- Light Nuclear Core Improved Heat Sink Improved Heat Sink Structural Scanner Advanced Targeting Computer Particle Charger Improved Power Shielding Improved Utility Shielding Insulated Plating Recalibrator Heavy Particle Gun Advanced Beam Rifle Advanced Beam Rifle Mini Grenade Launcher [Rating: 48] Favorites ----------- Power Deuterium Engine Engine Deuterium Engine Power Core Light Nuclear Core Propulsion Light Treads Treads Light Treads Leg Aluminum Leg Wheel Armored Huge Wheel Flight Unit Improved Flight Unit Utility Advanced Targeting Computer Device Sensor Array Storage Large Storage Unit Processor Advanced Targeting Computer Protection Improved Utility Shielding Weapon Advanced Beam Rifle Energy Gun Advanced Beam Rifle Energy Cannon Beam Cannon Ballistic Gun Autogun Ballistic Cannon Improved Light Cannon Launcher Rocket Launcher Special Weapon Mining Laser Slashing Weapon Mining Claw Build | -11 -10 -10 -9 -8 -8 -7 ------- Run | Yrd Mat Min Mat Mat Sto Fac Slots Evolved 6 | . . . 2 2 . 2 Power . | . . . . . . . Propulsion 2 | . . . 2 . . . Utility 4 | . . . . 2 . 2 Weapon . | . . . . . . . Parts Attached 125 | 7 7 . 40 27 22 22 Power 13 | 1 . . 5 4 1 2 Engine 9 | 1 . . 5 2 1 . Core 4 | . . . . 2 . 2 Reactor . | . . . . . . . Propulsion 42 | 2 2 . 18 9 8 3 Treads 20 | . 2 . . 9 8 1 Leg 12 | 2 . . 10 . . . Wheel 4 | . . . 2 . . 2 Hover . | . . . . . . . Flight 6 | . . . 6 . . . Utility 35 | 2 2 . 7 6 6 12 Device 23 | 1 1 . 5 3 6 7 Storage 2 | 1 . . . 1 . . Processor 7 | . 1 . 2 1 . 3 Hackware . | . . . . . . . Protection 3 | . . . . 1 . 2 Artifact . | . . . . . . . Weapon 35 | 2 3 . 10 8 7 5 Energy Gun 14 | 1 . . . 3 5 5 Energy Cannon 1 | . 1 . . . . . Ballistic Gun 9 | 1 . . 5 2 1 . Ballistic Cannon 1 | . . . 1 . . . Launcher 8 | . . . 4 3 1 . Special Weapon 1 | . 1 . . . . . Impact Weapon . | . . . . . . . Slashing Weapon 1 | . 1 . . . . . Piercing Weapon . | . . . . . . . Special Melee Weapon . | . . . . . . . Unidentified Prototypes 7 | . . . 1 2 3 1 Parts Lost 26 | . . 4 13 2 2 5 Power 4 | . . 1 3 . . . Propulsion 11 | . . 2 6 1 2 . Utility 5 | . . . 1 . . 4 Weapon 6 | . . 1 3 1 . 1 Highest Loss Streak 6 | . . 4 6 1 1 2 To Critical Strikes . | . . . . . . . Average Slot Usage (%) 91 | . 100 100 84 90 97 84 Engine 7 | . 14 14 8 3 9 3 Core 1 | . . . . 5 . 2 Treads 17 | . 15 28 . 27 33 6 Leg 7 | . 12 . 23 . . . Wheel 1 | . . . . . . 11 Flight 2 | . . . 9 . . . Device 9 | . 14 14 9 6 9 7 Storage 5 | . 6 . . 8 9 7 Processor 16 | . 7 14 11 18 18 26 Energy Gun 8 | . 7 . . 7 17 14 Ballistic Gun 5 | . 11 . 6 7 . . Launcher 1 | . . . 3 2 . . Slashing Weapon 3 | . 5 14 9 . . . Naked Turns . | . . . . . . . Heaviest Build 34 | 14 14 11 14 34 34 34 Greatest Support 83 | 20 40 40 40 80 80 83 Greatest Overweight (x) 9 | . . . 3 1 . 9 Average Overweight (x) . | . . . . . . . Largest Inventory Capacity 15 | 8 8 5 5 15 15 15 Average Capacity 10 | 6 6 5 5 14 15 15 Most Carried 15 | 5 8 5 5 15 15 14 Average Carried 8 | 3 4 4 4 8 14 12 Final Capacity 15 | 8 5 5 5 15 15 15 Final Carried 15 | 5 5 5 5 15 14 7 Class Distribution -------------------- 52% | Scavenger-Mutant 43% | Mutant 3% | Sprinter Dominant Class ---------------- Mutant | -10/Materials Mutant | -10/Mines Scavenger-Mutant | -9/Materials Scavenger-Mutant | -8/Materials Scavenger-Mutant | -8/Storage Mutant | -7/Factory Resources | -11 -10 -10 -9 -8 -8 -7 ----------- Run | Yrd Mat Min Mat Mat Sto Fac Matter Collected 2735 | 291 112 24 756 971 240 341 Remotely . | . . . . . . . Salvage Created 5654 | 168 188 28 1155 1672 1490 953 Parts 334 | 10 15 3 88 95 83 40 Haulers Intercepted 6 | . . . 1 2 3 . Recyclers Shooed 5 | . 1 . 2 1 1 . Parts Field Recycled . | . . . . . . . Retrieved Matter . | . . . . . . . Parts Self-Destructed . | . . . . . . . Prevented . | . . . . . . . Kills | -11 -10 -10 -9 -8 -8 -7 ------- Run | Yrd Mat Min Mat Mat Sto Fac Combat Hostiles Destroyed 85 | . 6 . 26 24 17 12 Melee 8 | . . . 8 . . . Guns 51 | . 2 . 9 17 13 10 Cannons 4 | . 4 . . . . . AOE 19 | . . . 9 7 3 . Classes Destroyed 15 | 3 3 1 4 1 1 2 Worker 23 | 1 . . 5 6 8 3 Builder 11 | . . 1 2 3 4 1 Tunneler 4 | 3 . . . . . 1 Hauler 6 | . . . 1 2 3 . Recycler 14 | 1 . . 2 5 3 3 Mechanic 2 | . . . 1 1 . . Operator 5 | . . . 1 2 1 1 Watcher 6 | . 1 . 1 3 1 . Swarmer 16 | . 3 . 7 6 . . Grunt 41 | . 3 . 11 10 10 7 Brawler 1 | . . . . . . 1 Duelist 2 | . . . . . 2 . Sentry 20 | . . . 8 7 5 . Hunter 3 | . . . . 1 . 2 Programmer 2 | . . . . . . 2 Best Kill Streak 7 | 2 3 1 7 7 7 7 Combat Bots Only 6 | . 3 . 6 5 3 5 Max Kills in Single Turn 3 | 1 1 1 3 2 3 2 Gunslinging 1 | . . . . . . 1 Exploded 3 | . . . 3 2 3 . Melee 1 | . . . 1 . . . Uniques/NPCs Destroyed . | . . . . . . . Combat | -11 -10 -10 -9 -8 -8 -7 -------- Run | Yrd Mat Min Mat Mat Sto Fac Hostile Shots Fired 578 | . 29 48 179 95 80 147 Missed 164 | . 6 11 55 26 17 49 Damage Taken 5739 | . 217 413 1757 972 1132 1248 Core 1003 | . 65 49 399 155 143 192 Absorbed by Shields . | . . . . . . . Redirected to Shielding 9 | . . . . 9 . . Regen/Repaired (Parts) 94 | . . . 77 . . 17 Core Remaining (%) 49 | 100 . 54 . . 45 . Volleys Fired 396 | 10 32 . 97 115 92 50 Largest 2 | 2 2 . 2 2 2 2 Hottest 122 | 60 100 . 56 122 122 122 Shots Fired 606 | 20 46 . 99 183 164 94 Gun 534 | 20 28 . 78 163 151 94 Cannon 21 | . 16 . 5 . . . Launcher 49 | . . . 16 20 13 . Special 2 | . 2 . . . . . Kinetic 215 | 10 14 . 83 108 . . Thermal 342 | 10 32 . . 55 151 94 Explosive 49 | . . . 16 20 13 . Electromagnetic . | . . . . . . . Robot Hit Streak 27 | 6 7 . 13 11 21 27 Robot Miss Streak 4 | 2 3 . 4 4 3 1 Penetration Max . | . . . . . . . Secondary Targets 4 | . . . . 2 1 1 Max Gunslinging Chain 1 | . . . . 1 1 1 Shots Hit Robots 436 | 15 24 3 94 112 105 83 Core Hits 234 | 6 11 1 54 76 50 36 Critical Kills . | . . . . . . . Critical Parts Destroyed . | . . . . . . . Critical Strikes 28 | . . . . 5 11 12 Burn 28 | . . . . 5 11 12 Melee Attacks 58 | . 3 8 47 . . . Impact . | . . . . . . . Slashing 58 | . 3 8 47 . . . Piercing . | . . . . . . . Sneak Attacks 8 | . . 3 5 . . . Combat Hostiles . | . . . . . . . Follow-up Attacks . | . . . . . . . Damage Inflicted 9589 | 185 366 139 2527 2462 2200 1710 Guns 6638 | 185 169 . 852 1731 1991 1710 Cannons 241 | . 193 . 48 . . . Explosions 1783 | . . . 843 731 209 . Melee 923 | . . 139 784 . . . Ramming 4 | . 4 . . . . . Kinetic 2139 | 97 89 . 900 1053 . . Thermal 4740 | 88 273 . . 678 1991 1710 Explosive 1783 | . . . 843 731 209 . Electromagnetic . | . . . . . . . Impact . | . . . . . . . Slashing 923 | . . 139 784 . . . Piercing . | . . . . . . . Highest Corruption 8 | . 4 4 2 . . 8 Average Corruption 3 | . 3 4 2 . . 6 Corruption Purged . | . . . . . . . Corruption Blocked . | . . . . . . . Effects 45 | . 4 4 19 . . 18 Message Errors 12 | . 1 2 5 . . 4 Matter Fused 12 | . 2 . 5 . . 5 Heat Flow Errors 2 | . . . 1 . . 1 Energy Discharges 6 | . . . 3 . . 3 Parts Rejected 1 | . . . . . . 1 Parts Fused 1 | . . . 1 . . . Data Loss (minor) 7 | . . 2 2 . . 3 Data Loss (major) 2 | . 1 . . . . 1 Misfires 1 | . . . 1 . . . Alerts 1 | . . . 1 . . . Overload Shots . | . . . . . . . Overflow Damage 85 | . . 35 50 . . . Projectiles . | . . . . . . . Explosions 11 | . . . 11 . . . Melee 74 | . . 35 39 . . . Knockbacks . | . . . . . . . Impact . | . . . . . . . Kinetic . | . . . . . . . Secondary . | . . . . . . . Self-Inflicted Damage 18 | . . . . 18 . . Shots 2 | . . . . 2 . . Rammed . | . . . . . . . Targets Rammed 2 | . 2 . . . . . Kicked 2 | . 2 . . . . . Crushed . | . . . . . . . Highest Temperature 459 | . 160 13 233 33 459 379 Average Temperature 80 | . 49 10 34 8 107 95 Received Heat Transfer 1995 | . 66 204 558 315 468 384 Effects 6 | . . . . . 5 1 Shutdowns 2 | . . . . . 1 1 Energy Bleed 1 | . . . . . 1 . Interference 3 | . . . . . 3 . Siege Activations . | . . . . . . . Robots Corrupted . | . . . . . . . Combat Hostiles . | . . . . . . . Parts Fried . | . . . . . . . Impact Corruptions . | . . . . . . . Robots Melted 3 | . . . . . 1 2 Combat Hostiles 3 | . . . . . 1 2 Parts Melted 30 | . 1 . . 4 11 14 Heat Transferred 11105 | 200 582 . . 1628 4736 3959 Parts Sabotaged . | . . . . . . . Parts Stolen . | . . . . . . . Parts Stripped . | . . . . . . . Power Chain Reactions . | . . . . . . . Alert | -11 -10 -10 -9 -8 -8 -7 ------- Run | Yrd Mat Min Mat Mat Sto Fac Peak Influence 694 | 25 151 36 548 655 694 464 Initial 315 | . 16 . . 231 271 315 Average 285 | 6 29 5 226 425 424 314 Maximum Alert Level 2 | . . . 2 2 2 2 Low Security (%) 32 | 100 100 100 43 7 . 6 Level 1 41 | . . . 46 41 40 87 Level 2 26 | . . . 10 51 59 5 Level 3 . | . . . . . . . Level 4 . | . . . . . . . Level 5 . | . . . . . . . High Security . | . . . . . . . Max Security . | . . . . . . . Squads Dispatched 19 | . 1 . 7 5 3 3 Investigation 12 | . . . 7 3 1 1 Extermination 2 | . . . . . . 2 Reinforcement 2 | . 1 . . 1 . . Assault 1 | . . . . 1 . . Garrison 2 | . . . . . 2 . Intercept . | . . . . . . . Searches Triggered . | . . . . . . . Construction Impeded . | . . . . . . . Haulers Reinforced . | . . . . . . . Active Scanning Responses . | . . . . . . . Cargo Convoy Interrupts . | . . . . . . . Stealth | -11 -10 -10 -9 -8 -8 -7 --------- Run | Yrd Mat Min Mat Mat Sto Fac Distress Signals 7 | . 1 . 2 3 1 . Communications Jammed . | . . . . . . . Distress Signals . | . . . . . . . Times Spotted 148 | . 12 8 55 37 19 17 Peak Tracking Total 9 | . 3 7 9 4 4 4 Tactical Retreats 13 | . . 1 8 1 2 1 Traps | -11 -10 -10 -9 -8 -8 -7 ------- Run | Yrd Mat Min Mat Mat Sto Fac Traps Triggered 8 | . 2 . 2 . 4 . Indirectly . | . . . . . . . Trap Hack Attempts . | . . . . . . . Triggered . | . . . . . . . Disarmed . | . . . . . . . Reprogrammed . | . . . . . . . Reused . | . . . . . . . Traps Extracted . | . . . . . . . Installed . | . . . . . . . Triggered . | . . . . . . . Machines | -11 -10 -10 -9 -8 -8 -7 ---------- Run | Yrd Mat Min Mat Mat Sto Fac Machines Disabled 12 | . 1 . 3 4 4 . Max in Single Turn 2 | . 1 . 1 2 1 . Garrison Access 1 | . . . . 1 . . Machines Repaired . | . . . . . . . Machines Dismantled . | . . . . . . . Machines Sabotaged . | . . . . . . . Overloaded Fab Kills . | . . . . . . . Hacking | -11 -10 -10 -9 -8 -8 -7 --------- Run | Yrd Mat Min Mat Mat Sto Fac Machines Accessed 27 | . 4 . 10 8 2 3 Terminals 19 | . 4 . 7 5 2 1 Fabricators . | . . . . . . . Repair Stations 3 | . . . 1 1 . 1 Recycling Units 3 | . . . 1 1 . 1 Scanalyzers 2 | . . . 1 1 . . Garrison Access . | . . . . . . . Total Hacks 88 | . 6 . 46 24 2 10 Successful 50 | . 4 . 27 12 1 6 Failed 38 | . 2 . 19 12 1 4 Catastrophic 5 | . . . 3 . 1 1 Database Lockouts . | . . . . . . . Manual 38 | . 6 . 17 12 2 1 Terminals 57 | . 6 . 31 17 2 1 Fabricators . | . . . . . . . Repair Stations 17 | . . . 6 3 . 8 Recycling Units 5 | . . . 3 1 . 1 Scanalyzers 9 | . . . 6 3 . . Garrison Access . | . . . . . . . Terminal Hacks 14 | . . . 9 4 1 . Record 1 | . . . 1 . . . Prototype ID Bank 2 | . . . 1 1 . . Alert Level 2 | . . . 1 1 . . Unreport Threat 3 | . . . 1 2 . . Investigation Status 2 | . . . 2 . . . Recall Investigation 1 | . . . 1 . . . Hauler Manifests 1 | . . . 1 . . . Registered Prototypes 1 | . . . . . 1 . Zone Layout 1 | . . . 1 . . . Fabricator Hacks . | . . . . . . . Repair Station Hacks 11 | . . . 6 . . 5 Scan Component 6 | . . . 3 . . 3 Repair 4 | . . . 2 . . 2 Refit 1 | . . . 1 . . . Recycling Unit Hacks 2 | . . . . 1 . 1 Report Inventory 1 | . . . . . . 1 Retrieve Components 1 | . . . . 1 . . Scanalyzer 9 | . . . 6 3 . . Insert Component 5 | . . . 3 2 . . Analyze 4 | . . . 3 1 . . Garrison Access Hacks . | . . . . . . . Unauthorized Hacks 14 | . 4 . 6 4 . . Terminals 14 | . 4 . 6 4 . . Botnet 14 | . 4 . 6 4 . . Fabricators . | . . . . . . . Repair Stations . | . . . . . . . Recycling Units . | . . . . . . . Scanalyzers . | . . . . . . . Garrison Access . | . . . . . . . Data Cores Recovered 4 | . . . 1 1 1 1 Used 2 | . . . 1 . . 1 Hacking Detections 22 | . 1 . 10 6 2 3 Full Trace Events 14 | . 1 . 9 3 . 1 Feedback Events . | . . . . . . . Feedback Blocked . | . . . . . . . Robot Schematics Acquired . | . . . . . . . Robots Built . | . . . . . . . Authchips . | . . . . . . . Time . | . . . . . . . Total Robot Build Rating . | . . . . . . . Part Schematics Acquired 3 | . . . 2 1 . . Parts Built . | . . . . . . . Authchips . | . . . . . . . Time . | . . . . . . . Total Part Build Rating . | . . . . . . . Parts Repaired 3 | . . . 2 . . 1 Time 150 | . . . 52 . . 98 Parts Recycled . | . . . . . . . Recycled Matter . | . . . . . . . Retrieved Matter . | . . . . . . . Retrieved Components 3 | . . . . 3 . . Parts Scanalyzed 3 | . . . 2 1 . . Part Schematics Acquired 3 | . . . 2 1 . . Parts Damaged . | . . . . . . . Bothacking | -11 -10 -10 -9 -8 -8 -7 ------------ Run | Yrd Mat Min Mat Mat Sto Fac Used RIF Installer . | . . . . . . . Robots Hacked . | . . . . . . . Non-combat . | . . . . . . . Combat . | . . . . . . . Robot Hacks Applied . | . . . . . . . Relay Couplers Released 4 | . . . . 4 . . Machine Destruction 4 | . . . . 4 . . Fabnet Peak Effective % . | . . . . . . . Robots Rewired . | . . . . . . . Allies Hacked . | . . . . . . . Hacks Repelled . | . . . . . . . Allies | -11 -10 -10 -9 -8 -8 -7 -------- Run | Yrd Mat Min Mat Mat Sto Fac Total Allies . | . . . . . . . Largest Group . | . . . . . . . Highest-Rated Group . | . . . . . . . Highest-Rated Ally . | . . . . . . . Total Orders . | . . . . . . . Ally Attacks . | . . . . . . . Total Damage . | . . . . . . . Kills . | . . . . . . . Allies Corrupted . | . . . . . . . Allies Melted . | . . . . . . . Intel | -11 -10 -10 -9 -8 -8 -7 ------- Run | Yrd Mat Min Mat Mat Sto Fac Robot Analysis Total . | . . . . . . . Derelict Logs Recovered . | . . . . . . . Drone Launches . | . . . . . . . Drone Recoveries . | . . . . . . . Exploration | -11 -10 -10 -9 -8 -8 -7 ------------- Run | Yrd Mat Min Mat Mat Sto Fac Turns Passed 6102 | 144 825 165 1529 1413 1181 845 Spaces Moved 3572 | 83 378 83 1347 684 505 492 Core 78 | 6 . 2 69 . . 1 Treads 1580 | . 245 81 . 648 505 101 Legs 742 | 77 133 . 532 . . . Wheels 406 | . . . 16 . . 390 Hover . | . . . . . . . Flight 766 | . . . 730 36 . . Fastest Speed 31 | 50 120 50 31 37 160 100 Average Speed 118 | 114 145 157 76 155 160 113 Slowest Speed 500 | 120 160 160 200 240 160 500 Overloaded Moves . | . . . . . . . Propulsion Burnouts . | . . . . . . . Robots Hopped 1 | . . . 1 . . . Cave-ins Triggered . | . . . . . . . Exploration Rate (%) 44 | 5 59 14 88 58 75 14 Regions Visited 6 Branch Regions 2 Pre-discovered Areas . | . . . . . . . Known Exits Taken 5 | . 1 1 1 1 1 . Unknown Exits Taken 1 | 1 . . . . . . Scrap Searched . | . . . . . . . Spaces Dug 20 | . 5 4 11 . . . Terrain Destroyed 363 | . 5 4 88 162 104 . Melee 10 | . 3 4 3 . . . Projectile 2 | . 2 . . . . . AOE 351 | . . . 85 162 104 . Terrain Rammed . | . . . . . . . Walls Destroyed . | . . . . . . . Machines Disabled . | . . . . . . . Actions | -11 -10 -10 -9 -8 -8 -7 --------- Run | Yrd Mat Min Mat Mat Sto Fac Total 4727 | 108 596 101 1659 869 711 683 Wait 466 | 3 159 5 107 11 75 106 Move 3564 | 82 377 82 1344 683 504 492 Hop 1 | . . . 1 . . . Pick Up 48 | 6 8 2 6 17 6 3 Fast Attach 40 | 6 . . 22 6 3 3 Attach 14 | 1 . . 4 3 . 6 Detach 2 | . . . 1 1 . . Swap 71 | . 7 . 14 18 19 13 Drop 63 | . 8 2 16 15 12 10 Fire 396 | 10 32 . 97 115 92 50 Melee 58 | . 3 8 47 . . . Ram . | . . . . . . . Kick 2 | . 2 . . . . . Crush . | . . . . . . . Escape Stasis . | . . . . . . . Rewire 2 | . . 2 . . . . Trap . | . . . . . . . Miscellaneous . | . . . . . . . Route ------- -11/Scrapyard -10/Materials (discovered 4 exits: *Mat x2 / *Min / [*Sub]) -10/Mines -9/Materials (discovered 3 exits: *Mat x3) -8/Materials (discovered 2 exits: *Fac / *Sto) -8/Storage -7/Factory History --------- Turn | Location | Event 16 | -11/Scrapyard | Discovered new exit (range 16) 145 | -11/Scrapyard | Entered Materials 317 | -10/Materials | Build established: Mutant 432 | -10/Materials | Discovered new exit (range 6) 649 | -10/Materials | Discovered new exit (range 14) 670 | -10/Materials | Identified exit to Materials 925 | -10/Materials | Discovered exit to Materials (range 12) 950 | -10/Materials | Discovered new exit (range 12) 969 | -10/Materials | Identified exit to Mines 970 | -10/Materials | Entered Mines 1117 | -10/Mines | Received a Rocket Launcher from a helpful Derelict 1118 | -10/Mines | Discovered exit to Materials (range 6) 1135 | -10/Mines | Entered Materials 1135 | -9/Materials | Evolved 2 slots: Propulsion x2 1164 | -9/Materials | Lost 4 parts (1p2n1w) 1332 | -9/Materials | Discovered new exit (range 11) 1334 | -9/Materials | Identified exit to Materials 1397 | -9/Materials | Discovered exit to Materials (range 11) 1436 | -9/Materials | Discovered exit to Materials (range 6) 1829 | -9/Materials | Core integrity fell below 50% 1877 | -9/Materials | Build established: Scavenger-Mutant 2325 | -9/Materials | Repaired Sensor Array 2353 | -9/Materials | Repaired Aluminum Leg 2475 | -9/Materials | Core integrity fell below 20% 2533 | -9/Materials | Lost 6 parts (1p3n1u1w) 2664 | -9/Materials | Entered another Materials area 2664 | -8/Materials | Evolved 2 slots: Utility x2 3456 | -8/Materials | Discovered new exit (range 15) 3524 | -8/Materials | Identified exit to Factory 3854 | -8/Materials | Discovered new exit (range 6) 3864 | -8/Materials | Identified exit to Storage 4077 | -8/Materials | Entered Storage 4820 | -8/Storage | Core integrity fell below 50% 5070 | -8/Storage | Garrison activated, responded to threat 5151 | -8/Storage | Discovered exit to Factory (range 15) 5258 | -8/Storage | Entered Factory 5258 | -7/Factory | Evolved 2 slots: Utility x2 5753 | -7/Factory | Build established: Mutant 5808 | -7/Factory | Repaired Particle Charger 6103 | -7/Factory | Self-destructed Last Messages --------------- R-06 Scavenger collects Com. Wheel. System corrupted: Component data lost. Com. Wheel melted. R-06 Scavenger destroyed. Acquired 16 matter. K-01 Serf collects debris. K-01 Serf destroyed. K-01 Serf collects debris. K-01 Serf destroyed. System corrupted: Lgt. Nuclear Core rejected. G-47 Trooper suffers critical hit (Burn). Critical hit (Burn: +37). G-47 Trooper suffers critical hit (Burn). Aluminum Leg melted. G-47 Trooper destroyed. Y-54 Guardian suffers critical hit (Burn). Adv. Beam Rifle destroyed. System corrupted: Matter fused (-8). M-28 Smith repairs G-47 Trooper. Insulated Plating destroyed. Map ----- +----------------------------------------------------+ | ?????#########????????# """"""" #??????# | | ??????????????????????# """"""" #??????# | | ??????????????????????# """"""" #??????# | | ??????????????????????# *=[""""""" #??????# ## | | ??????????????????????#!|**! ######## #? | | ??????????????????????# *%!""""""" # #? | | ??????????????????????# ==""""""" # #? | | ??????????????????????# *%""""""" # #? | | ??????????????????????# =""""""" # #? | | ??????????????????????# =%* * # #? | | ??????????????????????# ! %%= # ########? | | ?????????????????????###+#####+##### #???????? | | ?????????????????????# #???????? | | ?????????????????????# #???????? | | ?????????????????????# #???????? | | ????????????????????## #???????? | | ????????????????????# #???????? | | ????????????????????#T ###############???????? | | ????????????????????## #?##### #?????????????? | | ?????????????????????# #? ??????????????? | | ?????????????????????# # ?????????????? | | ?????????????????????# k # """ "??????????????? | | ?????????????????????# + """ "??????????????? | | ?????????????????????# Y# """ "??????????????? | | ?????????????????????# # ??? ?????????????? | | ??????????????##+##### @a######????????????????? | | ??????? r m ?????????? | | ??????? g ?????????? | | ??????? ?????????? | | ???????? t ?????????? | | ???????? %[ ??????????? | | ?????????#####################+##### ??????????? | | ?????????????????????????????? ?????? ??????????? | | ??????????????????????????????? ????????????????? | | ???????????????????????????????? ???????????????? | | ????????????????????????????????? +??????????????? | | ????????????????????????????????? #??????????????? | | ??????????????????????????????????+??????????????? | | ?????????????????????????????????????????????????? | | ?????????????????????????????????????????????????? | | ?????????????????????????????????????????????????? | | ?????????????????????????????????????????????????? | | ?????????????????????????????????????????????????? | | ?????????????????????????????????????????????????? | | ?????????????????????????????????????????????????? | | ?????????????????????????????????????????????????? | | ?????????????????????????????????????????????????? | | ?????????????????????????????????????????????????? | | ?????????????????????????????????????????????????? | | ?????????????????????????????????????????????????? | +----------------------------------------------------+ Best States ------------- Heat Dissipation 48 Energy Generation 14 Energy Capacity 275 Matter Stores 300 Matter Capacity 300 Sight Range 16 Robot Scan Range 15 Terrain Scan Range 16 Terrain Scan Density 10 ECM Strength 1 Armor Coverage 150 Resistance: EM 15 Power Shielding 66 Utility Shielding 66 Evasion (%) 63 Targeting Accuracy 24 Recoil Reduction 6 Particle Charging 15 Item Schematics ----------------- Rocket Launcher | -9/Materials | Scanalyzed Imp. Targeting Computer | -9/Materials | Scanalyzed Flak Cannon | -8/Materials | Scanalyzed Robot Schematics ------------------ None Fabricated ------------ Nothing Alien Tech Used ----------------- None Achievements -------------- I Spy Part-time Excavator Party Time Challenges ------------ None Game ------ Seed MiningScanTrap Manual? 0 Play Time 01:22:29 Cumulative 9.1 hours Start 2024.04.06 @ 14:42:43 End 2024.04.06 @ 16:04:32 Sessions 1 Manual Loads 0 Difficulty Rogue Special Mode None Game No. 17 Rogue 17 Adventurer 0 Explorer 0 Win Type - Total 0 Types 0/0/0/0/0/0/0/0/0 Lore% 8 Gallery% 14 Achievement% 14 Wizard Run 0 Options --------- Layout 1 ASCII 0 Keyboard 0 Movement Numpad Keybinds 0 Fullscreen 1 Font 32/SmallcapsGlow Map View 50x35 Zoom Use 0% Tactical HUD 0 Map Filters NONE Filters NONE Steam 1 RUN: 1620a417-f1d2-4d2c-98ad-72c0a67c1c77